[Event "POL-chT 2 Liga 2019"]
[Site "Poronin"]
[Date "2019.09.14"]
[Round "8.23"]
[White "Kalmuk, Krzysztof"]
[Black "Pulik, Krzysztof"]
[Result "1-0"]
[ECO "D34"]
[WhiteElo "1999"]
[BlackElo "2131"]
[Annotator "NA"]
[PlyCount "71"]
[EventDate "2019.09.07"]
[EventType "team-tourn"]
[EventCountry "POL"]
[SourceTitle "playchess.com"]
[Source "ChessBase"]
[SourceQuality "1"]
[TimeControl "40/5400+30:1800+30"]

1. Nf3 {[%emt 0:00:00]} d5 {[%emt 0:00:00]} 2. d4 {[%emt 0:00:00]} e6 {[%emt 0:00:00]} 3. c4 {[%emt 0:00:00]} c5 {[%emt 0:00:00]} 4. cxd5 {[%emt 0:00:14]} exd5 {[%emt 0:00:00]} 5. Nc3 {[%emt 0:00:15]} Nc6 {[%emt 0:00:00]} 6. g3 {[%emt 0:00:16]} Nf6 {[%emt 0:00:08]} 7. Bg2 {[%emt 0:00:13]} Be7 {[%emt 0:00:06]} 8. O-O {[%emt 0:00:27]} O-O {[%emt 0:00:05]} 9. Bg5 {[%emt 0:00:53]} c4 {[%emt 0:00:07]} 10. Ne5 {[%emt 0:01:00]} Be6 {[%emt 0:00:06]} 11. f4 {[%emt 0:00:52]} Ng4 {[%emt 0:04:48]} 12. Nxg4 {[%emt 0:00:47]} Bxg4 {[%emt 0:01:53]} 13. Bxd5 {[%emt 0:01:05]} Bxg5 {[%emt 0:00:24]} 14. fxg5 {[%emt 0:00:09]} Qxg5 {[%emt 0:00:06]} 15. Rf4 {[%emt 0:00:28]} Rad8 {[%emt 0:09:55]} 16. Qd2 {[%emt 0:14:19]} Kh8 {[%emt 0:14:33]} 17. Rd1 {[%emt 0:07:13]} Bh5 {[%emt 0:10:14]} 18. Rxf7 {[%emt 0:22:20]} Qxd2 {[%emt 0:03:18]} 19. Rxf8+ {[%emt 0:02:24]} Rxf8 {[%emt 0:00:05]} 20. Rxd2 {[%emt 0:00:06]} Na5 {[%emt 0:00:27]} 21. e4 {[%emt 0:05:08]} Rd8 {[%emt 0:01:03]} 22. h3 {[%emt 0:12:24]} g5 {[%emt 0:01:34]} 23. g4 {[%emt 0:03:53]} Bg6 {[%emt 0:01:52]} 24. Kf2 {[%emt 0:08:53]} a6 {[%emt 0:00:26]} 25. Ke3 {[%emt 0:00:34]} b5 {[%emt 0:00:40]} 26. Rf2 {[%emt 0:01:01]} Kg7 {[%emt 0:01:10]} 27. Ne2 {[%emt 0:04:44]} b4 {[%emt 0:04:32]} 28. Ng3 {[%emt 0:00:13]} Rb8 {[%emt 0:00:56]} 29. Nf5+ {[%emt 0:00:30]} Kh8 {[%emt 0:02:14]} 30. Kd2 {[%emt 0:04:37]} Rb6 {[%emt 0:02:28]} 31. Ne7 {[%emt 0:00:39]} Kg7 {[%emt 0:00:33]} 32. Nxg6 {[%emt 0:01:32]} Kxg6 {[%emt 0:00:17]} 33. e5 {[%emt 0:00:21]} h6 {[%emt 0:02:05]} 34. Rf7 {[%emt 0:00:49]} Rb5 35. Rd7 {[%emt 0:00:06]} Rb6 {[%emt 0:02:47]} 36. Be4# {[%emt 0:00:05]} 1-0

[Event "POL-chT 2 Liga 2019"]
[Site "Poronin"]
[Date "2019.09.14"]
[Round "8.24"]
[White "Lukasiewicz, Anna"]
[Black "Mazur, Anna"]
[Result "0-1"]
[ECO "B99"]
[WhiteElo "2075"]
[BlackElo "1697"]
[Annotator "NA"]
[PlyCount "120"]
[EventDate "2019.09.07"]
[EventType "team-tourn"]
[EventCountry "POL"]
[SourceTitle "playchess.com"]
[Source "ChessBase"]
[SourceQuality "1"]
[TimeControl "40/5400+30:1800+30"]

1. e4 {[%emt 0:00:00]} c5 {[%emt 0:00:00]} 2. Nf3 {[%emt 0:00:00]} d6 {[%emt 0:00:00]} 3. d4 {[%emt 0:00:29]} cxd4 {[%emt 0:00:03]} 4. Nxd4 {[%emt 0:00:06]} Nf6 {[%emt 0:00:16]} 5. Nc3 {[%emt 0:00:11]} a6 {[%emt 0:00:32]} 6. Bg5 {[%emt 0:00:43]} e6 {[%emt 0:02:43]} 7. f4 {[%emt 0:00:19]} Be7 {[%emt 0:00:30]} 8. Qf3 {[%emt 0:00:44]} Nbd7 {[%emt 0:04:52]} 9. O-O-O {[%emt 0:01:00]} Qc7 {[%emt 0:01:18]} 10. g4 {[%emt 0:01:37]} b5 {[%emt 0:17:29]} 11. Bxf6 {[%emt 0:02:09]} Nxf6 {[%emt 0:04:55]} 12. g5 {[%emt 0:04:34]} Nd7 {[%emt 0:00:15]} 13. Bg2 {[%emt 0:12:00]} Bb7 {[%emt 0:00:36]} 14. Rhe1 {[%emt 0:02:25]} Rc8 {[%emt 0:08:00]} 15. Rd2 {[%emt 0:03:57]} Nb6 {[%emt 0:01:41]} 16. Qh3 {[%emt 0:10:37]} b4 {[%emt 0:07:00]} 17. Nd1 {[%emt 0:02:23]} Nc4 {[%emt 0:01:13]} 18. Rde2 {[%emt 0:01:12]} Qd7 {[%emt 0:10:15]} 19. g6 {[%emt 0:07:12]} Bf6 {[%emt 0:09:42]} 20. gxf7+ {[%emt 0:03:32]} Kxf7 {[%emt 0:00:38]} 21. e5 {[%emt 0:09:53]} Bxg2 {[%emt 0:01:37]} 22. Rxg2 {[%emt 0:03:50]} dxe5 {[%emt 0:00:42]} 23. fxe5 {[%emt 0:02:16]} Nxe5 {[%emt 0:00:51]} 24. Rxe5 {[%emt 0:03:26]} Bxe5 {[%emt 0:01:01]} 25. Qh5+ {[%emt 0:00:14]} g6 {[%emt 0:02:08]} 26. Qxe5 {[%emt 0:00:24]} Rhd8 {[%emt 0:10:04]} 27. Rf2+ {[%emt 0:12:03]} Kg8 {[%emt 0:00:07]} 28. Qxe6+ {[%emt 0:04:23]} Qxe6 {[%emt 0:00:22]} 29. Nxe6 {[%emt 0:00:05]} Rd5 {[%emt 0:01:10]} 30. Rg2 {[%emt 0:03:03]} Rc6 {[%emt 0:02:08]} 31. Nf4 {[%emt 0:00:31]} Re5 {[%emt 0:01:40]} 32. Nd3 {[%emt 0:01:15]} Rb5 {[%emt 0:01:40]} 33. Ne3 {[%emt 0:01:48]} a5 {[%emt 0:01:40]} 34. Rg4 {[%emt 0:02:55]} Kg7 {[%emt 0:02:29]} 35. Kd2 {[%emt 0:00:23]} Kf6 {[%emt 0:01:54]} 36. Rf4+ {[%emt 0:01:19]} Kg7 {[%emt 0:02:21]} 37. Ng4 {[%emt 0:00:28]} Re6 {[%emt 0:00:38]} 38. Rd4 {[%emt 0:00:45]} g5 {[%emt 0:00:51]} 39. Rd7+ {[%emt 0:02:00]} Kg6 {[%emt 0:00:13]} 40. Ne3 {[%emt 0:00:00]} Re4 {[%emt 0:00:00]} 41. h3 {[%emt 0:07:52]} h5 {[%emt 0:12:59]} 42. Nd5 {[%emt 0:03:39]} Rh4 {[%emt 0:05:17]} 43. Rd6+ {[%emt 0:03:46]} Kg7 {[%emt 0:00:16]} 44. Ne5 {[%emt 0:07:56]} Rd4+ {[%emt 0:00:34]} 45. Ke3 {[%emt 0:01:59]} Rdxd5 {[%emt 0:00:11]} 46. Rxd5 {[%emt 0:01:24]} Rxd5 {[%emt 0:00:06]} 47. Nd3 {[%emt 0:00:10]} Kf6 {[%emt 0:01:51]} 48. c4 {[%emt 0:00:07]} bxc3 {[%emt 0:00:32]} 49. bxc3 {[%emt 0:00:05]} Kf5 {[%emt 0:01:13]} 50. c4 {[%emt 0:00:12]} Rd8 {[%emt 0:00:08]} 51. a4 {[%emt 0:00:24]} g4 {[%emt 0:00:11]} 52. hxg4+ {[%emt 0:00:07]} hxg4 {[%emt 0:01:02]} 53. c5 {[%emt 0:00:19]} g3 {[%emt 0:02:40]} 54. Nf4 {[%emt 0:00:16]} Rc8 {[%emt 0:01:54]} 55. Nd3 {[%emt 0:00:09]} g2 {[%emt 0:00:15]} 56. Kf2 {[%emt 0:00:08]} Ke4 {[%emt 0:00:04]} 57. Ne1 {[%emt 0:00:13]} Rxc5 {[%emt 0:01:09]} 58. Nxg2 {[%emt 0:00:08]} Rc4 {[%emt 0:00:07]} 59. Ne3 {[%emt 0:01:35]} Rxa4 {[%emt 0:00:08]} 60. Nd1 {[%emt 0:00:10]} Ra2+ {[%emt 0:00:14]} 0-1

[Event "POL-chT 2 Liga 2019"]
[Site "Poronin"]
[Date "2019.09.14"]
[Round "8.25"]
[White "Psyk, Radoslaw"]
[Black "Molenda, Marcin"]
[Result "1-0"]
[ECO "B24"]
[WhiteElo "2314"]
[BlackElo "2373"]
[Annotator "NA"]
[PlyCount "51"]
[EventDate "2019.09.07"]
[EventType "team-tourn"]
[EventCountry "POL"]
[SourceTitle "playchess.com"]
[Source "ChessBase"]
[SourceQuality "1"]
[TimeControl "40/5400+30:1800+30"]

1. e4 {[%emt 0:01:31]} c5 {[%emt 0:00:00]} 2. Nc3 {[%emt 0:00:52]} Nc6 {[%emt 0:06:10]} 3. Bb5 {[%emt 0:00:47]} g6 {[%emt 0:07:43]} 4. Bxc6 {[%emt 0:00:30]} bxc6 {[%emt 0:01:28]} 5. f4 {[%emt 0:02:54]} Bg7 {[%emt 0:02:46]} 6. Nf3 {[%emt 0:01:25]} d6 {[%emt 0:00:26]} 7. O-O {[%emt 0:04:08]} Nf6 {[%emt 0:06:09]} 8. d3 {[%emt 0:15:26]} O-O {[%emt 0:01:32]} 9. Qe1 {[%emt 0:04:16]} Bg4 {[%emt 0:04:55]} 10. b3 {[%emt 0:14:19]} Rb8 {[%emt 0:08:54]} 11. Bd2 {[%emt 0:06:12]} Ne8 {[%emt 0:03:11]} 12. Nh4 {[%emt 0:05:01]} Bd7 {[%emt 0:03:06]} 13. Rd1 {[%emt 0:05:58]} Nc7 {[%emt 0:00:57]} 14. f5 {[%emt 0:05:47]} e6 {[%emt 0:01:53]} 15. Qg3 {[%emt 0:03:07]} exf5 {[%emt 0:17:39]} 16. exf5 {[%emt 0:04:20]} Bf6 {[%emt 0:07:21]} 17. fxg6 {[%emt 0:02:17]} Bxh4 {[%emt 0:00:19]} 18. gxf7+ {[%emt 0:00:19]} Kh8 {[%emt 0:00:13]} 19. Qxd6 {[%emt 0:00:15]} Bg4 {[%emt 0:15:54]} 20. Qe5+ {[%emt 0:02:41]} Bf6 {[%emt 0:00:08]} 21. Rxf6 {[%emt 0:00:17]} Qd4+ {[%emt 0:00:00]} 22. Qxd4 {[%emt 0:00:01]} cxd4 {[%emt 0:00:11]} 23. Rdf1 {[%emt 0:00:42]} dxc3 {[%emt 0:03:08]} 24. Bxc3 {[%emt 0:00:04]} Nd5 {[%emt 0:00:03]} 25. Be5 {[%emt 0:00:22]} Nxf6 {[%emt 0:00:32]} 26. Bxf6# 1-0

[Event "POL-chT 2 Liga 2019"]
[Site "Poronin"]
[Date "2019.09.14"]
[Round "8.26"]
[White "Czerw, Dawid"]
[Black "Zochowski, Kacper"]
[Result "1/2-1/2"]
[ECO "C41"]
[WhiteElo "2269"]
[BlackElo "2267"]
[Annotator "NA"]
[PlyCount "26"]
[EventDate "2019.09.07"]
[EventType "team-tourn"]
[EventCountry "POL"]
[SourceTitle "playchess.com"]
[Source "ChessBase"]
[SourceQuality "1"]
[TimeControl "40/5400+30:1800+30"]

1. d4 {[%emt 0:00:00]} d6 {[%emt 0:01:01]} 2. e4 {[%emt 0:00:00]} Nf6 {[%emt 0:00:19]} 3. Nc3 {[%emt 0:00:00]} e5 {[%emt 0:00:19]} 4. Nf3 {[%emt 0:00:00]} Nbd7 {[%emt 0:00:43]} 5. Rg1 {[%emt 0:00:00]} Be7 {[%emt 0:10:37]} 6. g4 {[%emt 0:00:17]} O-O {[%emt 0:00:05]} 7. g5 {[%emt 0:00:43]} Nh5 {[%emt 0:00:14]} 8. Be3 {[%emt 0:05:36]} c6 {[%emt 0:07:38]} 9. Qd2 {[%emt 0:13:11]} Qa5 {[%emt 0:10:50]} 10. Be2 {[%emt 0:05:28]} g6 {[%emt 0:04:04]} 11. h4 {[%emt 0:10:03]} b5 {[%emt 0:05:03]} 12. a3 {[%emt 0:06:57]} a6 {[%emt 0:17:53]} 13. Nh2 {[%emt 0:11:20]} Nf4 {[%emt 0:04:47]} 1/2-1/2

[Event "POL-chT 2 Liga 2019"]
[Site "Poronin"]
[Date "2019.09.14"]
[Round "8.27"]
[White "Adamczewski, Maciej"]
[Black "Pazdziora, Michal"]
[Result "0-1"]
[ECO "D31"]
[WhiteElo "2109"]
[BlackElo "2176"]
[Annotator "NA"]
[PlyCount "52"]
[EventDate "2019.09.07"]
[EventType "team-tourn"]
[EventCountry "POL"]
[SourceTitle "playchess.com"]
[Source "ChessBase"]
[SourceQuality "1"]
[TimeControl "40/5400+30:1800+30"]

1. d4 {[%emt 0:00:00]} d5 {[%emt 0:00:00]} 2. c4 {[%emt 0:00:00]} c6 {[%emt 0:00:33]} 3. Nc3 {[%emt 0:00:36]} e6 {[%emt 0:00:41]} 4. Nf3 {[%emt 0:00:46]} dxc4 {[%emt 0:01:45]} 5. g3 {[%emt 0:01:30]} Nf6 {[%emt 0:02:12]} 6. Bg2 {[%emt 0:00:41]} Nbd7 {[%emt 0:00:53]} 7. e4 {[%emt 0:03:01]} Bb4 {[%emt 0:09:00]} 8. Qe2 {[%emt 0:04:41]} b5 {[%emt 0:10:23]} 9. O-O {[%emt 0:04:08]} O-O {[%emt 0:01:15]} 10. a4 {[%emt 0:01:43]} Bb7 {[%emt 0:17:17]} 11. axb5 {[%emt 0:15:32]} cxb5 {[%emt 0:04:02]} 12. e5 {[%emt 0:01:32]} Nd5 {[%emt 0:00:36]} 13. Nxb5 {[%emt 0:07:01]} a6 {[%emt 0:03:07]} 14. Na3 {[%emt 0:05:56]} c3 {[%emt 0:01:22]} 15. Nc2 {[%emt 0:03:07]} a5 {[%emt 0:03:31]} 16. Nxb4 {[%emt 0:01:17]} axb4 {[%emt 0:00:19]} 17. Rxa8 {[%emt 0:01:04]} Qxa8 {[%emt 0:00:10]} 18. bxc3 {[%emt 0:00:29]} Nxc3 {[%emt 0:02:31]} 19. Qe3 {[%emt 0:03:46]} Nb6 {[%emt 0:03:13]} 20. Nh4 {[%emt 0:02:40]} Nbd5 {[%emt 0:03:50]} 21. Qf3 {[%emt 0:03:12]} Qa2 {[%emt 0:02:54]} 22. Qg4 {[%emt 0:04:17]} Ne2+ {[%emt 0:02:39]} 23. Kh1 {[%emt 0:00:05]} Nxc1 {[%emt 0:00:10]} 24. Rxc1 {[%emt 0:00:04]} b3 {[%emt 0:03:05]} 25. Be4 {[%emt 0:04:44]} b2 {[%emt 0:04:22]} 26. Rg1 {[%emt 0:03:31]} Nc3 {[%emt 0:01:46]} 0-1

[Event "POL-chT 2 Liga 2019"]
[Site "Poronin"]
[Date "2019.09.14"]
[Round "8.28"]
[White "Niedbala, Bartlomiej"]
[Black "Tabola, Marcin"]
[Result "1-0"]
[ECO "E16"]
[WhiteElo "2145"]
[BlackElo "2003"]
[Annotator "NA"]
[PlyCount "116"]
[EventDate "2019.09.07"]
[EventType "team-tourn"]
[EventCountry "POL"]
[SourceTitle "playchess.com"]
[Source "ChessBase"]
[SourceQuality "1"]
[TimeControl "40/5400+30:1800+30"]

1. d4 {[%emt 0:00:00]} Nf6 {[%emt 0:00:00]} 2. Nf3 {[%emt 0:00:17]} e6 {[%emt 0:00:00]} 3. c4 {[%emt 0:01:06]} b6 {[%emt 0:00:33]} 4. g3 {[%emt 0:03:56]} Bb7 {[%emt 0:02:13]} 5. Bg2 {[%emt 0:01:29]} Bb4+ {[%emt 0:00:18]} 6. Nbd2 {[%emt 0:02:20]} O-O {[%emt 0:01:00]} 7. a3 {[%emt 0:04:30]} Be7 {[%emt 0:00:14]} 8. O-O {[%emt 0:01:14]} c5 {[%emt 0:00:29]} 9. dxc5 {[%emt 0:04:30]} bxc5 {[%emt 0:00:24]} 10. Qc2 {[%emt 0:00:36]} Nc6 {[%emt 0:02:56]} 11. b3 {[%emt 0:03:54]} Qc7 {[%emt 0:02:47]} 12. Bb2 {[%emt 0:00:57]} Rfd8 {[%emt 0:05:52]} 13. e3 {[%emt 0:02:15]} Rac8 {[%emt 0:01:38]} 14. Rac1 {[%emt 0:05:35]} Qb8 {[%emt 0:00:58]} 15. Ng5 {[%emt 0:04:18]} h6 {[%emt 0:00:34]} 16. Bxf6 {[%emt 0:03:39]} hxg5 {[%emt 0:05:44]} 17. Bxe7 {[%emt 0:05:10]} Nxe7 {[%emt 0:00:14]} 18. Bxb7 {[%emt 0:00:01]} Qxb7 {[%emt 0:00:40]} 19. Ne4 {[%emt 0:00:10]} Nf5 {[%emt 0:14:21]} 20. Nxg5 {[%emt 0:03:04]} f6 {[%emt 0:02:39]} 21. Ne4 {[%emt 0:01:40]} d6 {[%emt 0:00:12]} 22. Rfd1 {[%emt 0:07:44]} Rb8 {[%emt 0:00:59]} 23. Rb1 {[%emt 0:00:59]} Qf7 {[%emt 0:05:37]} 24. Rd2 {[%emt 0:04:40]} Qh5 {[%emt 0:05:40]} 25. Qd1 {[%emt 0:03:54]} Qh7 {[%emt 0:08:48]} 26. Nxc5 {[%emt 0:00:38]} Kf7 {[%emt 0:00:05]} 27. Ne4 {[%emt 0:20:56]} Rh8 {[%emt 0:17:37]} 28. h4 {[%emt 0:00:51]} Nxh4 {[%emt 0:03:36]} 29. Nxd6+ {[%emt 0:02:25]} Ke7 {[%emt 0:00:15]} 30. gxh4 {[%emt 0:00:41]} Qg6+ {[%emt 0:00:12]} 31. Kf1 {[%emt 0:00:07]} Rxh4 {[%emt 0:00:08]} 32. Ke2 {[%emt 0:01:59]} Rd8 {[%emt 0:10:10]} 33. Nf5+ {[%emt 0:02:02]} exf5 {[%emt 0:00:35]} 34. Rxd8 {[%emt 0:00:06]} Qg4+ {[%emt 0:00:16]} 35. Kd2 {[%emt 0:00:33]} Kxd8 {[%emt 0:00:13]} 36. Kc3+ {[%emt 0:01:45]} Ke7 {[%emt 0:00:55]} 37. Qxg4 {[%emt 0:00:43]} fxg4 {[%emt 0:00:10]} 38. Rd1 {[%emt 0:03:03]} Rh2 {[%emt 0:01:05]} 39. Rd2 {[%emt 0:00:01]} Rh1 {[%emt 0:00:07]} 40. c5 {[%emt 0:00:00]} f5 {[%emt 0:00:00]} 41. Kb4 {[%emt 0:09:08]} Rb1 {[%emt 0:04:50]} 42. a4 {[%emt 0:10:59]} g5 {[%emt 0:03:07]} 43. c6 {[%emt 0:01:09]} f4 {[%emt 0:02:47]} 44. exf4 {[%emt 0:00:20]} gxf4 {[%emt 0:00:02]} 45. Rd4 {[%emt 0:01:37]} g3 {[%emt 0:00:18]} 46. fxg3 fxg3 {[%emt 0:00:06]} 47. Rd7+ {[%emt 0:08:24]} Ke6 {[%emt 0:01:42]} 48. Rg7 {[%emt 0:01:25]} a5+ {[%emt 0:16:27]} 49. Kxa5 {[%emt 0:07:07]} Rxb3 {[%emt 0:00:07]} 50. c7 {[%emt 0:00:10]} Rc3 {[%emt 0:00:13]} 51. Kb6 {[%emt 0:00:25]} Rb3+ {[%emt 0:01:15]} 52. Kc6 {[%emt 0:00:37]} Rc3+ {[%emt 0:00:20]} 53. Kb7 {[%emt 0:00:11]} Rb3+ {[%emt 0:00:12]} 54. Ka8 {[%emt 0:00:40]} Rc3 {[%emt 0:00:10]} 55. Kb8 {[%emt 0:00:01]} Rb3+ {[%emt 0:00:52]} 56. Kc8 {[%emt 0:00:01]} Ra3 {[%emt 0:01:54]} 57. a5 {[%emt 0:00:46]} Rxa5 {[%emt 0:01:50]} 58. Kb7 {[%emt 0:00:16]} Kd5 1-0

[Event "POL-chT 2 Liga 2019"]
[Site "Poronin"]
[Date "2019.09.14"]
[Round "8.29"]
[White "Hasterok, Mateusz"]
[Black "Galuszka, Tomasz"]
[Result "1-0"]
[ECO "D10"]
[WhiteElo "1985"]
[BlackElo "2222"]
[Annotator "NA"]
[PlyCount "119"]
[EventDate "2019.09.07"]
[EventType "team-tourn"]
[EventCountry "POL"]
[SourceTitle "playchess.com"]
[Source "ChessBase"]
[SourceQuality "1"]
[TimeControl "40/5400+30:1800+30"]

1. d4 {[%emt 0:00:00]} d5 {[%emt 0:00:00]} 2. c4 {[%emt 0:00:00]} c6 {[%emt 0:00:00]} 3. Nc3 {[%emt 0:00:00]} Nf6 {[%emt 0:00:00]} 4. e3 Bf5 5. cxd5 {[%emt 0:01:04]} Nxd5 {[%emt 0:10:26]} 6. Bc4 {[%emt 0:00:02]} e6 {[%emt 0:05:34]} 7. Nf3 {[%emt 0:03:41]} Nd7 {[%emt 0:03:54]} 8. O-O {[%emt 0:01:01]} Bg6 {[%emt 0:04:32]} 9. Qe2 {[%emt 0:02:16]} Be7 {[%emt 0:06:42]} 10. Rd1 {[%emt 0:07:57]} O-O {[%emt 0:00:56]} 11. e4 {[%emt 0:02:12]} Nxc3 {[%emt 0:00:22]} 12. bxc3 {[%emt 0:00:07]} Qc7 {[%emt 0:01:41]} 13. a4 {[%emt 0:06:18]} e5 {[%emt 0:07:09]} 14. Bb2 {[%emt 0:10:00]} Rad8 {[%emt 0:02:07]} 15. h3 {[%emt 0:10:22]} Rfe8 {[%emt 0:05:37]} 16. d5 {[%emt 0:08:38]} Nc5 {[%emt 0:00:45]} 17. dxc6 {[%emt 0:01:41]} bxc6 {[%emt 0:00:14]} 18. Nd2 {[%emt 0:04:38]} Bg5 {[%emt 0:06:25]} 19. Ba3 {[%emt 0:01:01]} Nxa4 {[%emt 0:07:25]} 20. Bb4 {[%emt 0:06:04]} Nb6 {[%emt 0:00:52]} 21. Nb3 {[%emt 0:02:08]} Rxd1+ {[%emt 0:06:09]} 22. Rxd1 {[%emt 0:00:30]} Rd8 {[%emt 0:02:59]} 23. Rxd8+ {[%emt 0:01:07]} Qxd8 {[%emt 0:00:15]} 24. Nc5 {[%emt 0:00:54]} Be7 {[%emt 0:08:10]} 25. Bb3 {[%emt 0:01:36]} Qf8 {[%emt 0:01:55]} 26. Qe3 {[%emt 0:03:17]} Bd6 {[%emt 0:04:06]} 27. Nd3 {[%emt 0:03:08]} c5 {[%emt 0:01:13]} 28. Nxc5 {[%emt 0:00:52]} Kh8 {[%emt 0:04:53]} 29. Nd3 {[%emt 0:00:47]} f6 {[%emt 0:00:41]} 30. f3 {[%emt 0:03:07]} Be8 {[%emt 0:00:25]} 31. Kh1 {[%emt 0:01:56]} Bb5 {[%emt 0:01:21]} 32. Nc5 {[%emt 0:02:30]} Qe7 {[%emt 0:00:55]} 33. Nd3 {[%emt 0:02:23]} g6 {[%emt 0:01:00]} 34. Bxd6 {[%emt 0:00:27]} Qxd6 {[%emt 0:00:01]} 35. Nb4 {[%emt 0:00:25]} Kg7 {[%emt 0:00:53]} 36. Nd5 {[%emt 0:00:15]} Nxd5 {[%emt 0:00:37]} 37. Bxd5 {[%emt 0:02:24]} Qb6 {[%emt 0:00:02]} 38. Qd2 {[%emt 0:00:48]} a5 {[%emt 0:03:45]} 39. c4 {[%emt 0:01:13]} Bd7 {[%emt 0:04:37]} 40. Qc3 {[%emt 0:04:01]} Qc5 {[%emt 0:00:42]} 41. f4 {[%emt 0:00:14]} Qf2 {[%emt 0:14:30]} 42. fxe5 {[%emt 0:00:45]} Qf1+ {[%emt 0:00:12]} 43. Kh2 {[%emt 0:00:04]} Qf4+ {[%emt 0:00:06]} 44. Kg1 {[%emt 0:00:13]} fxe5 {[%emt 0:08:05]} 45. Qxa5 {[%emt 0:02:40]} Qc1+ {[%emt 0:00:45]} 46. Kf2 {[%emt 0:01:20]} Qf4+ {[%emt 0:00:03]} 47. Ke2 {[%emt 0:01:39]} Qg3 {[%emt 0:00:44]} 48. Qc7 {[%emt 0:01:46]} Qxg2+ {[%emt 0:00:08]} 49. Kd1 {[%emt 0:00:22]} Qf1+ {[%emt 0:00:38]} 50. Kd2 {[%emt 0:00:18]} Qg2+ {[%emt 0:00:08]} 51. Kc3 {[%emt 0:00:41]} Qxh3+ {[%emt 0:04:02]} 52. Kb4 {[%emt 0:00:04]} Kh6 {[%emt 0:00:57]} 53. Qxe5 {[%emt 0:00:23]} Qe3 {[%emt 0:01:25]} 54. Qc7 {[%emt 0:02:50]} Be8 {[%emt 0:03:06]} 55. Qh2+ {[%emt 0:01:00]} Kg5 {[%emt 0:00:07]} 56. Qe5+ {[%emt 0:00:05]} Kg4 {[%emt 0:01:45]} 57. Qxe8 {[%emt 0:00:09]} Qd2+ {[%emt 0:00:23]} 58. Kb5 {[%emt 0:00:30]} Kf4 {[%emt 0:01:57]} 59. Qf8+ {[%emt 0:00:42]} Ke5 {[%emt 0:00:18]} 60. Qg7+ {[%emt 0:00:13]} 1-0

[Event "POL-chT 2 Liga 2019"]
[Site "Poronin"]
[Date "2019.09.14"]
[Round "8.30"]
[White "Adamczyk, Zuzanna"]
[Black "Poznanska, Katarzyna"]
[Result "1/2-1/2"]
[ECO "B41"]
[WhiteElo "1938"]
[BlackElo "2082"]
[Annotator "NA"]
[PlyCount "96"]
[EventDate "2019.09.07"]
[EventType "team-tourn"]
[EventCountry "POL"]
[SourceTitle "playchess.com"]
[Source "ChessBase"]
[SourceQuality "1"]
[TimeControl "40/5400+30:1800+30"]

1. e4 {[%emt 0:00:00]} c5 {[%emt 0:00:00]} 2. Nf3 {[%emt 0:00:00]} e6 {[%emt 0:00:42]} 3. d4 {[%emt 0:00:10]} cxd4 {[%emt 0:00:06]} 4. Nxd4 {[%emt 0:00:13]} a6 {[%emt 0:00:03]} 5. c4 {[%emt 0:00:17]} Nf6 {[%emt 0:00:59]} 6. Nc3 {[%emt 0:00:46]} Qc7 {[%emt 0:01:48]} 7. a3 {[%emt 0:02:22]} Nc6 {[%emt 0:02:29]} 8. Be3 {[%emt 0:02:13]} d6 {[%emt 0:02:05]} 9. Be2 {[%emt 0:02:03]} Be7 {[%emt 0:01:29]} 10. Rc1 {[%emt 0:02:01]} O-O {[%emt 0:03:14]} 11. O-O {[%emt 0:02:05]} Qb8 {[%emt 0:01:21]} 12. Kh1 {[%emt 0:01:45]} Bd7 {[%emt 0:17:33]} 13. f3 {[%emt 0:09:31]} Rc8 {[%emt 0:08:29]} 14. Qd2 {[%emt 0:05:10]} Nxd4 {[%emt 0:04:27]} 15. Bxd4 {[%emt 0:01:59]} b5 {[%emt 0:00:53]} 16. cxb5 {[%emt 0:20:57]} axb5 {[%emt 0:00:01]} 17. Rfd1 {[%emt 0:01:14]} Ne8 {[%emt 0:29:57]} 18. Na2 {[%emt 0:09:16]} Nc7 {[%emt 0:04:17]} 19. Nb4 {[%emt 0:03:49]} Na6 {[%emt 0:04:40]} 20. Nxa6 {[%emt 0:07:37]} Rxa6 {[%emt 0:00:02]} 21. Rxc8+ {[%emt 0:01:10]} Qxc8 {[%emt 0:01:17]} 22. Rc1 {[%emt 0:01:01]} Qb8 {[%emt 0:05:01]} 23. Bc3 {[%emt 0:02:58]} Rc6 {[%emt 0:07:30]} 24. Bb4 {[%emt 0:01:24]} Rxc1+ {[%emt 0:00:42]} 25. Qxc1 {[%emt 0:00:05]} Bf6 {[%emt 0:00:15]} 26. Qd2 {[%emt 0:01:06]} Qb6 {[%emt 0:01:59]} 27. Qxd6 {[%emt 0:09:08]} Qxd6 {[%emt 0:00:07]} 28. Bxd6 {[%emt 0:00:10]} Bxb2 {[%emt 0:00:02]} 29. Kg1 {[%emt 0:03:22]} f6 {[%emt 0:02:02]} 30. Kf2 {[%emt 0:01:25]} e5 {[%emt 0:00:28]} 31. Ke3 {[%emt 0:02:48]} Kf7 {[%emt 0:00:09]} 32. Bc5 {[%emt 0:00:53]} g6 {[%emt 0:00:45]} 33. Kd2 {[%emt 0:00:50]} f5 {[%emt 0:00:27]} 34. Kc2 {[%emt 0:00:51]} Ba1 {[%emt 0:00:23]} 35. exf5 {[%emt 0:02:53]} gxf5 {[%emt 0:00:53]} 36. Kb3 {[%emt 0:00:46]} e4 {[%emt 0:00:33]} 37. Kb4 {[%emt 0:00:49]} Be5 {[%emt 0:00:05]} 38. g3 {[%emt 0:00:57]} exf3 {[%emt 0:00:28]} 39. Bxf3 {[%emt 0:00:10]} f4 {[%emt 0:00:29]} 40. gxf4 {[%emt 0:00:00]} Bxf4 {[%emt 0:00:00]} 41. Ka5 {[%emt 0:12:52]} Bxh2 {[%emt 0:01:50]} 42. Be2 {[%emt 0:01:30]} Bc7+ {[%emt 0:00:58]} 43. Kb4 {[%emt 0:00:39]} Ke8 {[%emt 0:05:45]} 44. Bxb5 {[%emt 0:00:50]} Bxb5 {[%emt 0:00:25]} 45. Kxb5 {[%emt 0:00:08]} h5 {[%emt 0:01:48]} 46. Bf2 {[%emt 0:00:36]} Kd7 {[%emt 0:00:16]} 47. a4 {[%emt 0:00:54]} Kc8 {[%emt 0:00:56]} 48. a5 {[%emt 0:01:14]} Kb7 {[%emt 0:00:59]} 1/2-1/2